[Event "FIDE World Rapid Chess Championship 2021"]
[White "Ponkratov, Pavel"]
[Black "Erigaisi, Arjun"]
[WhiteFideId "4157800"]
[BlackFideId "35009192"]
[WhiteElo "2614"]
[BlackElo "2397"]
[Result "0-1"]
[Round "01"]
[TimeControl "900+10"]
[Date "2021.12.26"]
[WhiteClock "0:00:13"]
[BlackClock "0:00:39"]

1. d4 {[%clk 0:15:17]}  d5 {[%clk 0:15:15]} 2. c4 {[%clk 0:15:25]}  e6 {[%clk 0:15:23]} 3. Nc3 {[%clk 0:15:27]}  Bb4 {[%clk 0:15:30]} 4. e3 {[%clk 0:15:27]}  Nf6 {[%clk 0:15:34]} 5. Bd3 {[%clk 0:14:58]}  c5 {[%clk 0:15:17]} 6. Ne2 {[%clk 0:15:06]}  cxd4 {[%clk 0:15:17]} 7. exd4 {[%clk 0:15:14]}  Nc6 {[%clk 0:15:19]} 8. cxd5 {[%clk 0:15:16]}  Nxd5 {[%clk 0:15:13]} 9. O-O {[%clk 0:15:23]}  Be7 {[%clk 0:15:05]} 10. Bc2 {[%clk 0:15:19]}  O-O {[%clk 0:15:02]} 11. Qd3 {[%clk 0:15:27]}  g6 {[%clk 0:15:09]} 12. Bb3 {[%clk 0:15:01]}  Ncb4 {[%clk 0:14:50]} 13. Qf3 {[%clk 0:15:04]}  Bd7 {[%clk 0:13:29]} 14. Bh6 {[%clk 0:14:33]}  Re8 {[%clk 0:13:28]} 15. Ne4 {[%clk 0:14:25]}  Bb5 {[%clk 0:13:05]} 16. Rfd1 {[%clk 0:14:31]}  Rc8 {[%clk 0:12:40]} 17. a3 {[%clk 0:14:28]}  Bxe2 {[%clk 0:12:25]} 18. Qxe2 {[%clk 0:14:35]}  Nc6 {[%clk 0:12:33]} 19. Nc3 {[%clk 0:10:34]}  Nxc3 {[%clk 0:11:29]} 20. bxc3 {[%clk 0:10:42]}  Bg5 {[%clk 0:11:37]} 21. Bxg5 {[%clk 0:10:39]}  Qxg5 {[%clk 0:11:44]} 22. Rd3 {[%clk 0:10:05]}  Ne7 {[%clk 0:10:39]} 23. Re1 {[%clk 0:08:39]}  Nd5 {[%clk 0:10:05]} 24. Qf3 {[%clk 0:08:36]}  Qf4 {[%clk 0:09:05]} 25. c4 {[%clk 0:05:34]}  Qxf3 {[%clk 0:09:08]} 26. Rxf3 {[%clk 0:05:43]}  Nb6 {[%clk 0:08:09]} 27. c5 {[%clk 0:05:33]}  Nd7 {[%clk 0:08:08]} 28. Kf1 {[%clk 0:03:12]}  Kg7 {[%clk 0:07:41]} 29. Rb1 {[%clk 0:02:18]}  Nf6 {[%clk 0:07:08]} 30. Bd1 {[%clk 0:02:00]}  Red8 {[%clk 0:04:00]} 31. Rb4 {[%clk 0:00:44]}  Rc7 {[%clk 0:03:21]} 32. Rfb3 {[%clk 0:00:48]}  b6 {[%clk 0:03:18]} 33. cxb6 {[%clk 0:00:57]}  axb6 {[%clk 0:03:27]} 34. Bf3 {[%clk 0:01:06]}  Rc2 {[%clk 0:03:19]} 35. Rb2 {[%clk 0:00:59]}  Rc1+ {[%clk 0:03:25]} 36. Ke2 {[%clk 0:01:07]}  Ra1 {[%clk 0:03:34]} 37. a4 {[%clk 0:00:55]}  Ra3 {[%clk 0:03:12]} 38. h4 {[%clk 0:01:01]}  Rd6 {[%clk 0:02:59]} 39. Rc4 {[%clk 0:01:04]}  h6 {[%clk 0:02:51]} 40. Bc6 {[%clk 0:00:57]}  Nd5 {[%clk 0:02:54]} 41. g3 {[%clk 0:00:37]}  g5 {[%clk 0:01:53]} 42. hxg5 {[%clk 0:00:45]}  hxg5 {[%clk 0:02:01]} 43. Bxd5 {[%clk 0:00:37]}  exd5 {[%clk 0:02:09]} 44. Rcb4 {[%clk 0:00:46]}  Re6+ {[%clk 0:02:17]} 45. Kf1 {[%clk 0:00:56]}  Re4 {[%clk 0:02:24]} 46. Rxb6 {[%clk 0:00:19]}  Rxa4 {[%clk 0:02:13]} 47. R2b5 {[%clk 0:00:18]}  Raxd4 {[%clk 0:02:14]} 48. Rd6 {[%clk 0:00:25]}  Re5 {[%clk 0:02:16]} 49. Rb2 {[%clk 0:00:23]}  g4 {[%clk 0:02:17]} 50. Kg2 {[%clk 0:00:30]}  Re6 {[%clk 0:02:08]} 51. Rd7 {[%clk 0:00:32]}  Kg6 {[%clk 0:02:14]} 52. Rb8 {[%clk 0:00:29]}  Rf6 {[%clk 0:01:59]} 53. Rb2 {[%clk 0:00:38]}  Kg5 {[%clk 0:01:54]} 54. Re2 {[%clk 0:00:39]}  Re6 {[%clk 0:01:55]} 55. Ra2 {[%clk 0:00:48]}  f6 {[%clk 0:01:49]} 56. Ra5 {[%clk 0:00:29]}  Re5 {[%clk 0:01:56]} 57. Ra6 {[%clk 0:00:39]}  Rd2 {[%clk 0:01:19]} 58. Rg7+ {[%clk 0:00:35]}  Kf5 {[%clk 0:01:28]} 59. Ra4 {[%clk 0:00:37]}  d4 {[%clk 0:01:31]} 60. Ra6 {[%clk 0:00:13]}  Rd1 {[%clk 0:00:36]} 61. Rf7 {[%clk 0:00:12]}  Re6 {[%clk 0:00:42]} 62. Ra5+ {[%clk 0:00:21]}  Kg6 {[%clk 0:00:49]} 63. Rf8 {[%clk 0:00:29]}  Kg7 {[%clk 0:00:21]} 64. Raa8 {[%clk 0:00:38]}  Re4 {[%clk 0:00:24]} 65. Rfd8 {[%clk 0:00:43]}  d3 {[%clk 0:00:28]} 66. Ra2 {[%clk 0:00:19]}  Kg6 {[%clk 0:00:22]} 67. Rg8+ {[%clk 0:00:18]}  Kf7 {[%clk 0:00:30]} 68. Raa8 {[%clk 0:00:22]}  d2 {[%clk 0:00:30]} 69. Raf8+ {[%clk 0:00:18]}  Ke6 {[%clk 0:00:39]} 70. Rd8 {[%clk 0:00:26]}  Ra4 {[%clk 0:00:18]} 71. Rge8+ {[%clk 0:00:14]}  Kf5 {[%clk 0:00:27]} 72. Rd5+ {[%clk 0:00:22]}  Kg6 {[%clk 0:00:36]} 73. Rg8+ {[%clk 0:00:31]}  Kf7 {[%clk 0:00:33]} 74. Rdd8 {[%clk 0:00:41]}  Raa1 {[%clk 0:00:43]} 75. Rgf8+ {[%clk 0:00:13]}  Kg6 {[%clk 0:00:39]} 0-1


[Site "http://www.Chess.com"]

[Event "FIDE World Rapid Chess Championship 2021"]
[White "Donchenko, Alexander"]
[Black "Nakamura, Hikaru"]
[WhiteFideId "24603295"]
[BlackFideId "2016192"]
[WhiteElo "2535"]
[BlackElo "2836"]
[Result "0-1"]
[Round "01"]
[TimeControl "900+10"]
[Date "2021.12.26"]
[WhiteClock "0:00:11"]
[BlackClock "0:01:46"]

1. c4 {[%clk 0:15:17]}  e5 {[%clk 0:15:19]} 2. g3 {[%clk 0:15:25]}  Nf6 {[%clk 0:15:26]} 3. Bg2 {[%clk 0:15:32]}  d5 {[%clk 0:15:35]} 4. cxd5 {[%clk 0:15:40]}  Nxd5 {[%clk 0:15:43]} 5. Nf3 {[%clk 0:15:37]}  Nc6 {[%clk 0:15:38]} 6. O-O {[%clk 0:15:43]}  Nb6 {[%clk 0:15:24]} 7. b3 {[%clk 0:15:48]}  Be6 {[%clk 0:15:29]} 8. Bb2 {[%clk 0:15:54]}  f6 {[%clk 0:15:37]} 9. Nc3 {[%clk 0:15:52]}  Qd7 {[%clk 0:15:46]} 10. Qc1 {[%clk 0:15:44]}  Nd5 {[%clk 0:14:18]} 11. Ne4 {[%clk 0:15:35]}  O-O-O {[%clk 0:13:20]} 12. d4 {[%clk 0:14:21]}  Bf5 {[%clk 0:11:10]} 13. Nh4 {[%clk 0:12:45]}  exd4 {[%clk 0:09:46]} 14. Rd1 {[%clk 0:10:28]}  Bh3 {[%clk 0:09:28]} 15. Bh1 {[%clk 0:07:17]}  Bb4 {[%clk 0:02:27]} 16. a3 {[%clk 0:06:22]}  Ba5 {[%clk 0:02:36]} 17. Nf3 {[%clk 0:03:49]}  Bb6 {[%clk 0:02:46]} 18. Qc2 {[%clk 0:02:22]}  Nde7 {[%clk 0:00:57]} 19. b4 {[%clk 0:02:13]}  Nf5 {[%clk 0:01:01]} 20. Nc5 {[%clk 0:01:53]}  Bxc5 {[%clk 0:01:08]} 21. Qxc5 {[%clk 0:01:59]}  Qd6 {[%clk 0:01:06]} 22. Qc2 {[%clk 0:01:58]}  Qe6 {[%clk 0:00:54]} 23. Rd3 {[%clk 0:01:04]}  Rhe8 {[%clk 0:01:01]} 24. b5 {[%clk 0:01:07]}  Ne5 {[%clk 0:00:55]} 25. Nxd4 {[%clk 0:01:03]}  Qc4 {[%clk 0:00:38]} 26. Rc3 {[%clk 0:00:18]}  Nxd4 {[%clk 0:00:35]} 27. Rxc4 {[%clk 0:00:27]}  Nxc2 {[%clk 0:00:39]} 28. Rxc2 {[%clk 0:00:34]}  Kb8 {[%clk 0:00:39]} 29. Rac1 {[%clk 0:00:33]}  Rd7 {[%clk 0:00:48]} 30. Be4 {[%clk 0:00:31]}  h5 {[%clk 0:00:28]} 31. a4 {[%clk 0:00:21]}  Red8 {[%clk 0:00:31]} 32. f3 {[%clk 0:00:21]}  Nf7 {[%clk 0:00:35]} 33. Kf2 {[%clk 0:00:24]}  Be6 {[%clk 0:00:41]} 34. a5 {[%clk 0:00:20]}  Nd6 {[%clk 0:00:34]} 35. Bd3 {[%clk 0:00:28]}  Bf5 {[%clk 0:00:42]} 36. e4 {[%clk 0:00:32]}  Be6 {[%clk 0:00:50]} 37. Be2 {[%clk 0:00:38]}  b6 {[%clk 0:00:55]} 38. axb6 {[%clk 0:00:35]}  axb6 {[%clk 0:01:03]} 39. e5 {[%clk 0:00:39]}  fxe5 {[%clk 0:00:40]} 40. Bxe5 {[%clk 0:00:47]}  g6 {[%clk 0:00:49]} 41. Bf1 {[%clk 0:00:13]}  Rf7 {[%clk 0:00:41]} 42. f4 {[%clk 0:00:15]}  Bd5 {[%clk 0:00:46]} 43. Kg1 {[%clk 0:00:14]}  Rdd7 {[%clk 0:00:45]} 44. Rd2 {[%clk 0:00:16]}  Be4 {[%clk 0:00:17]} 45. Bh3 {[%clk 0:00:18]}  Nf5 {[%clk 0:00:22]} 46. Re2 {[%clk 0:00:16]}  Bf3 {[%clk 0:00:23]} 47. Rec2 {[%clk 0:00:24]}  Be4 {[%clk 0:00:25]} 48. Rc3 {[%clk 0:00:28]}  Kb7 {[%clk 0:00:29]} 49. Re1 {[%clk 0:00:30]}  Bd5 {[%clk 0:00:35]} 50. Rd1 {[%clk 0:00:26]}  Be4 {[%clk 0:00:42]} 51. Re1 {[%clk 0:00:35]}  Bd5 {[%clk 0:00:51]} 52. Ra1 {[%clk 0:00:32]}  Kc8 {[%clk 0:00:56]} 53. Rd1 {[%clk 0:00:19]}  Be4 {[%clk 0:00:58]} 54. Rdc1 {[%clk 0:00:24]}  Kb8 {[%clk 0:00:54]} 55. Ra3 {[%clk 0:00:25]}  Rd2 {[%clk 0:00:55]} 56. Rac3 {[%clk 0:00:24]}  Nd4 {[%clk 0:00:39]} 57. Bxd4 {[%clk 0:00:11]}  Rxd4 {[%clk 0:00:48]} 58. Bg2 {[%clk 0:00:19]}  Bxg2 {[%clk 0:00:53]} 59. Kxg2 {[%clk 0:00:28]}  Rb4 {[%clk 0:01:02]} 60. Rc6 {[%clk 0:00:35]}  Rg7 {[%clk 0:01:10]} 61. Kh3 {[%clk 0:00:35]}  Rxb5 {[%clk 0:01:19]} 62. Kh4 {[%clk 0:00:44]}  Rd5 {[%clk 0:01:22]} 63. h3 {[%clk 0:00:42]}  Kb7 {[%clk 0:01:31]} 64. Re6 {[%clk 0:00:44]}  b5 {[%clk 0:01:21]} 65. Re5 {[%clk 0:00:48]}  Rxe5 {[%clk 0:01:29]} 66. fxe5 {[%clk 0:00:57]}  Re7 {[%clk 0:01:39]} 67. Re1 {[%clk 0:01:02]}  Kc6 {[%clk 0:01:31]} 68. Kg5 {[%clk 0:01:09]}  Kd5 {[%clk 0:01:40]} 69. Kxg6 {[%clk 0:00:16]}  Rxe5 {[%clk 0:01:49]} 70. Rd1+ {[%clk 0:00:22]}  Ke6 {[%clk 0:01:42]} 71. g4 {[%clk 0:00:24]}  hxg4 {[%clk 0:01:51]} 72. hxg4 {[%clk 0:00:33]}  c5 {[%clk 0:02:00]} 73. g5 {[%clk 0:00:36]}  Re2 {[%clk 0:01:49]} 74. Rb1 {[%clk 0:00:24]}  b4 {[%clk 0:01:56]} 75. Kh6 {[%clk 0:00:32]}  Rh2+ {[%clk 0:01:44]} 76. Kg7 {[%clk 0:00:38]}  Rh3 {[%clk 0:01:49]} 77. g6 {[%clk 0:00:22]}  b3 {[%clk 0:01:58]} 78. Rc1 {[%clk 0:00:17]}  Kd5 {[%clk 0:01:52]} 79. Rg1 {[%clk 0:00:19]}  b2 {[%clk 0:01:33]} 80. Rb1 {[%clk 0:00:11]}  Rh2 {[%clk 0:01:30]} 81. Kf7 {[%clk 0:00:17]}  Rf2+ {[%clk 0:01:37]} 82. Ke8 {[%clk 0:00:11]}  Rg2 {[%clk 0:01:42]} 83. g7 {[%clk 0:00:11]}  Rxg7 {[%clk 0:01:46]} 0-1


[Site "http://www.Chess.com"]

[Event "FIDE World Rapid Chess Championship 2021"]
[White "Vastrukhin, Oleg"]
[Black "Hovhannisyan, Robert"]
[WhiteFideId "4192770"]
[BlackFideId "13302507"]
[WhiteElo "2382"]
[BlackElo "2613"]
[Result "1/2-1/2"]
[Round "01"]
[TimeControl "900+10"]
[Date "2021.12.26"]
[WhiteClock "0:00:39"]
[BlackClock "0:00:45"]

1. Nf3 {[%clk 0:15:17]}  d5 {[%clk 0:15:17]} 2. g3 {[%clk 0:15:25]}  Bg4 {[%clk 0:15:20]} 3. Ne5 {[%clk 0:15:30]}  Bf5 {[%clk 0:15:17]} 4. d4 {[%clk 0:15:37]}  e6 {[%clk 0:15:12]} 5. Bg2 {[%clk 0:15:44]}  Nf6 {[%clk 0:14:51]} 6. O-O {[%clk 0:15:48]}  Nbd7 {[%clk 0:14:42]} 7. c4 {[%clk 0:15:50]}  c6 {[%clk 0:14:38]} 8. Nc3 {[%clk 0:15:55]}  Be7 {[%clk 0:14:16]} 9. Qb3 {[%clk 0:15:51]}  Qb6 {[%clk 0:14:14]} 10. Nxd7 {[%clk 0:15:55]}  Nxd7 {[%clk 0:14:19]} 11. e4 {[%clk 0:15:56]}  dxe4 {[%clk 0:14:25]} 12. Nxe4 {[%clk 0:16:03]}  Rd8 {[%clk 0:14:11]} 13. Be3 {[%clk 0:15:24]}  Qxb3 {[%clk 0:13:33]} 14. axb3 {[%clk 0:15:32]}  a6 {[%clk 0:13:41]} 15. h3 {[%clk 0:15:01]}  Bxe4 {[%clk 0:12:38]} 16. Bxe4 {[%clk 0:15:07]}  f5 {[%clk 0:12:37]} 17. Bg2 {[%clk 0:14:32]}  Nf6 {[%clk 0:12:35]} 18. Rfe1 {[%clk 0:13:06]}  Kf7 {[%clk 0:12:30]} 19. Bf3 {[%clk 0:11:09]}  Rd7 {[%clk 0:12:09]} 20. Kg2 {[%clk 0:11:13]}  h5 {[%clk 0:11:19]} 21. Re2 {[%clk 0:10:46]}  g6 {[%clk 0:09:54]} 22. Bg5 {[%clk 0:07:06]}  Rxd4 {[%clk 0:08:04]} 23. Rae1 {[%clk 0:07:08]}  Ne4 {[%clk 0:05:32]} 24. Bxe7 {[%clk 0:07:07]}  Kxe7 {[%clk 0:05:40]} 25. Bxe4 {[%clk 0:07:15]}  fxe4 {[%clk 0:05:49]} 26. Rxe4 {[%clk 0:06:48]}  Rxe4 {[%clk 0:05:55]} 27. Rxe4 {[%clk 0:06:56]}  c5 {[%clk 0:03:44]} 28. Kf3 {[%clk 0:06:34]}  Rd8 {[%clk 0:03:52]} 29. Ke2 {[%clk 0:06:36]}  Rd6 {[%clk 0:03:19]} 30. Re3 {[%clk 0:06:05]}  a5 {[%clk 0:03:02]} 31. h4 {[%clk 0:05:42]}  Kf6 {[%clk 0:02:41]} 32. Rd3 {[%clk 0:04:23]}  Rb6 {[%clk 0:02:41]} 33. Rf3+ {[%clk 0:02:58]}  Ke5 {[%clk 0:02:43]} 34. Re3+ {[%clk 0:02:58]}  Kf5 {[%clk 0:02:45]} 35. Kd2 {[%clk 0:01:46]}  a4 {[%clk 0:02:40]} 36. Rf3+ {[%clk 0:01:49]}  Ke4 {[%clk 0:02:07]} 37. Re3+ {[%clk 0:01:42]}  Kf5 {[%clk 0:01:39]} 38. Rf3+ {[%clk 0:01:51]}  Kg4 {[%clk 0:00:46]} 39. Rf4+ {[%clk 0:01:23]}  Kh3 {[%clk 0:00:55]} 40. bxa4 {[%clk 0:01:32]}  Rxb2+ {[%clk 0:01:00]} 41. Ke3 {[%clk 0:01:14]}  Ra2 {[%clk 0:00:43]} 42. Ke4 {[%clk 0:00:41]}  Rxa4 {[%clk 0:00:37]} 43. Ke5 {[%clk 0:00:49]}  Ra6 {[%clk 0:00:38]} 44. Rf6 {[%clk 0:00:36]}  Kg2 {[%clk 0:00:44]} 45. Rxg6 {[%clk 0:00:35]}  Kxf2 {[%clk 0:00:52]} 46. g4 {[%clk 0:00:43]}  Ra4 {[%clk 0:00:30]} 47. Rf6+ {[%clk 0:00:26]}  Ke3 {[%clk 0:00:36]} 48. Rf4 {[%clk 0:00:23]}  hxg4 {[%clk 0:00:32]} 49. Rxg4 {[%clk 0:00:32]}  b5 {[%clk 0:00:36]} 50. h5 {[%clk 0:00:32]}  bxc4 {[%clk 0:00:21]} 51. h6 {[%clk 0:00:39]}  Ra8 {[%clk 0:00:21]} 52. Rxc4 {[%clk 0:00:35]}  Rh8 {[%clk 0:00:30]} 53. Rh4 {[%clk 0:00:19]}  Kd3 {[%clk 0:00:22]} 54. Rh3+ {[%clk 0:00:22]}  Kc4 {[%clk 0:00:23]} 55. Kxe6 {[%clk 0:00:29]}  Kb4 {[%clk 0:00:31]} 56. Kf7 {[%clk 0:00:16]}  c4 {[%clk 0:00:39]} 57. Kg7 {[%clk 0:00:25]}  Rxh6 {[%clk 0:00:37]} 58. Kxh6 {[%clk 0:00:33]}  c3 {[%clk 0:00:45]} 59. Rxc3 {[%clk 0:00:39]} 1/2-1/2


[Site "http://www.Chess.com"]

[Event "FIDE World Rapid Chess Championship 2021"]
[White "Duda, Jan-Krzysztof"]
[Black "Gabuzyan, Hovhannes"]
[WhiteFideId "1170546"]
[BlackFideId "13303732"]
[WhiteElo "2801"]
[BlackElo "2535"]
[Result "1-0"]
[Round "01"]
[TimeControl "900+10"]
[Date "2021.12.26"]
[WhiteClock "0:01:42"]
[BlackClock "0:02:26"]

1. d4 {[%clk 0:15:17]}  Nf6 {[%clk 0:15:18]} 2. c4 {[%clk 0:15:25]}  c5 {[%clk 0:15:24]} 3. d5 {[%clk 0:15:32]}  e6 {[%clk 0:15:30]} 4. Nc3 {[%clk 0:15:36]}  d6 {[%clk 0:15:17]} 5. e4 {[%clk 0:15:25]}  g6 {[%clk 0:15:09]} 6. Be3 {[%clk 0:11:47]}  Bg7 {[%clk 0:14:50]} 7. f3 {[%clk 0:11:52]}  O-O {[%clk 0:14:19]} 8. Qd2 {[%clk 0:11:59]}  exd5 {[%clk 0:13:42]} 9. cxd5 {[%clk 0:12:07]}  Nbd7 {[%clk 0:12:51]} 10. Nh3 {[%clk 0:12:10]}  Nh5 {[%clk 0:12:34]} 11. Be2 {[%clk 0:11:25]}  Ne5 {[%clk 0:12:01]} 12. Nf2 {[%clk 0:11:11]}  f5 {[%clk 0:12:04]} 13. f4 {[%clk 0:07:03]}  Ng4 {[%clk 0:12:08]} 14. Nxg4 {[%clk 0:07:11]}  fxg4 {[%clk 0:12:15]} 15. O-O {[%clk 0:07:18]}  Bd7 {[%clk 0:12:03]} 16. g3 {[%clk 0:06:09]}  Re8 {[%clk 0:10:48]} 17. e5 {[%clk 0:04:01]}  dxe5 {[%clk 0:10:34]} 18. fxe5 {[%clk 0:04:09]}  Bxe5 {[%clk 0:10:13]} 19. d6 {[%clk 0:04:18]}  Bc6 {[%clk 0:08:38]} 20. Bxc5 {[%clk 0:04:03]}  b6 {[%clk 0:08:36]} 21. Ba3 {[%clk 0:03:42]}  Nf6 {[%clk 0:07:58]} 22. Rae1 {[%clk 0:03:42]}  Kg7 {[%clk 0:08:02]} 23. Bb5 {[%clk 0:02:49]}  Bxc3 {[%clk 0:05:32]} 24. Qxc3 {[%clk 0:02:56]}  Bxb5 {[%clk 0:05:41]} 25. Re7+ {[%clk 0:02:45]}  Qxe7 {[%clk 0:05:42]} 26. dxe7 {[%clk 0:02:53]}  Bxf1 {[%clk 0:05:51]} 27. Kxf1 {[%clk 0:02:49]}  Rac8 {[%clk 0:06:00]} 28. Qd3 {[%clk 0:02:04]}  Rc1+ {[%clk 0:05:50]} 29. Kf2 {[%clk 0:01:53]}  Rc6 {[%clk 0:05:51]} 30. Ke3 {[%clk 0:01:01]}  Re6+ {[%clk 0:05:43]} 31. Kd2 {[%clk 23:59:51]}  Ne4+ {[%clk 0:04:46]} 32. Kc2 {[%clk 0:01:14]}  Nc5 {[%clk 0:03:31]} 33. Qd4+ {[%clk 0:01:09]}  Kg8 {[%clk 0:03:26]} 34. b4 {[%clk 0:00:45]}  Ne4 {[%clk 0:03:10]} 35. b5 {[%clk 0:00:40]}  Kf7 {[%clk 0:03:18]} 36. Kb3 {[%clk 0:00:39]}  h5 {[%clk 0:03:26]} 37. Qd7 {[%clk 0:00:19]}  R8xe7 {[%clk 0:03:05]} 38. Bxe7 {[%clk 0:00:27]}  Rxe7 {[%clk 0:03:14]} 39. Qd5+ {[%clk 0:00:35]}  Kg7 {[%clk 0:03:22]} 40. Qd4+ {[%clk 0:00:43]}  Kh7 {[%clk 0:03:29]} 41. Kc4 {[%clk 0:00:29]}  Rc7+ {[%clk 0:02:58]} 42. Kb4 {[%clk 0:00:32]}  Nc5 {[%clk 0:02:59]} 43. Qf6 {[%clk 0:00:18]}  Nd3+ {[%clk 0:03:04]} 44. Kb3 {[%clk 0:00:27]}  Nc5+ {[%clk 0:03:08]} 45. Kb4 {[%clk 0:00:16]}  Nd3+ {[%clk 0:03:06]} 46. Ka3 {[%clk 0:00:26]}  Nc5 {[%clk 0:03:01]} 47. Qf8 {[%clk 0:00:24]}  Rd7 {[%clk 0:02:58]} 48. Kb4 {[%clk 0:00:29]}  Rd4+ {[%clk 0:03:00]} 49. Kc3 {[%clk 0:00:37]}  Ra4 {[%clk 0:03:01]} 50. Qf7+ {[%clk 0:00:36]}  Kh6 {[%clk 0:03:10]} 51. Qg8 {[%clk 0:00:42]}  Kg5 {[%clk 0:03:03]} 52. Qf8 {[%clk 0:00:31]}  Ne4+ {[%clk 0:02:55]} 53. Kb3 {[%clk 0:00:24]}  Nc5+ {[%clk 0:03:01]} 54. Qxc5+ {[%clk 0:00:16]}  bxc5 {[%clk 0:03:08]} 55. Kxa4 {[%clk 0:00:25]}  Kf5 {[%clk 0:03:12]} 56. Kb3 {[%clk 0:00:34]}  Ke4 {[%clk 0:03:22]} 57. Kc4 {[%clk 0:00:43]}  Kf3 {[%clk 0:03:31]} 58. a4 {[%clk 0:00:53]}  h4 {[%clk 0:03:07]} 59. gxh4 {[%clk 0:00:54]}  Kg2 {[%clk 0:02:49]} 60. a5 {[%clk 0:01:03]}  Kxh2 {[%clk 0:02:41]} 61. b6 {[%clk 0:01:12]}  axb6 {[%clk 0:02:50]} 62. axb6 {[%clk 0:01:21]}  g3 {[%clk 0:03:00]} 63. b7 {[%clk 0:01:29]}  g2 {[%clk 0:03:09]} 64. b8=Q+ {[%clk 0:01:37]}  Kh3 {[%clk 0:02:26]} 65. Qb1 {[%clk 0:01:42]} 1-0


[Site "http://www.Chess.com"]

[Event "FIDE World Rapid Chess Championship 2021"]
[White "Efimenko, Zahar"]
[Black "Martirosyan, Haik M."]
[WhiteFideId "14107201"]
[BlackFideId "13306553"]
[WhiteElo "2609"]
[BlackElo "2377"]
[Result "1/2-1/2"]
[Round "01"]
[TimeControl "900+10"]
[Date "2021.12.26"]
[WhiteClock "0:00:54"]
[BlackClock "0:00:46"]

1. Nf3 {[%clk 0:15:11]}  Nf6 {[%clk 0:15:16]} 2. g3 {[%clk 0:15:19]}  d5 {[%clk 0:15:13]} 3. Bg2 {[%clk 0:15:26]}  e6 {[%clk 0:14:58]} 4. O-O {[%clk 0:15:30]}  Be7 {[%clk 0:15:06]} 5. c4 {[%clk 0:15:33]}  O-O {[%clk 0:15:11]} 6. b3 {[%clk 0:15:33]}  b6 {[%clk 0:14:51]} 7. Bb2 {[%clk 0:15:29]}  Bb7 {[%clk 0:14:58]} 8. cxd5 {[%clk 0:15:21]}  Nxd5 {[%clk 0:14:53]} 9. d4 {[%clk 0:15:18]}  Nd7 {[%clk 0:14:38]} 10. Nbd2 {[%clk 0:15:05]}  N5f6 {[%clk 0:13:38]} 11. Rc1 {[%clk 0:14:09]}  c5 {[%clk 0:13:24]} 12. Nc4 {[%clk 0:13:59]}  Rc8 {[%clk 0:12:58]} 13. Nfe5 {[%clk 0:12:18]}  Bxg2 {[%clk 0:12:40]} 14. Kxg2 {[%clk 0:12:26]}  Qc7 {[%clk 0:11:11]} 15. Nxd7 {[%clk 0:10:25]}  Qxd7 {[%clk 0:10:43]} 16. dxc5 {[%clk 0:09:54]}  Qb7+ {[%clk 0:10:31]} 17. f3 {[%clk 0:09:33]}  Rxc5 {[%clk 0:09:59]} 18. Bxf6 {[%clk 0:06:03]}  gxf6 {[%clk 0:08:13]} 19. Nd6 {[%clk 0:04:05]}  Qc6 {[%clk 0:06:37]} 20. Rxc5 {[%clk 0:01:37]}  Qxc5 {[%clk 0:06:43]} 21. Ne4 {[%clk 0:01:45]}  Qb5 {[%clk 0:05:10]} 22. Qc2 {[%clk 0:01:37]}  f5 {[%clk 0:04:19]} 23. Nf2 {[%clk 0:01:43]}  Bc5 {[%clk 0:03:00]} 24. Qd2 {[%clk 0:01:46]}  Be7 {[%clk 0:02:36]} 25. Rc1 {[%clk 0:01:41]}  Rd8 {[%clk 0:02:31]} 26. Nd3 {[%clk 0:01:49]}  Bf6 {[%clk 0:02:00]} 27. Rc7 {[%clk 0:01:51]}  Rd7 {[%clk 0:01:46]} 28. Qc2 {[%clk 0:01:36]}  Bd8 {[%clk 0:00:40]} 29. Rxd7 {[%clk 0:00:45]}  Qxd7 {[%clk 0:00:49]} 30. Qc3 {[%clk 0:00:53]}  Bc7 {[%clk 0:00:46]} 31. a4 {[%clk 0:00:54]} 1/2-1/2


[Site "http://www.Chess.com"]

[Event "FIDE World Rapid Chess Championship 2021"]
[White "Van Foreest, Lucas"]
[Black "Chigaev, Maksim"]
[WhiteFideId "1039792"]
[BlackFideId "4108116"]
[WhiteElo "2374"]
[BlackElo "2605"]
[Result "1-0"]
[Round "01"]
[TimeControl "900+10"]
[Date "2021.12.26"]
[WhiteClock "0:09:19"]
[BlackClock "0:00:21"]

1. e4 {[%clk 0:15:18]}  c5 {[%clk 0:15:18]} 2. c3 {[%clk 0:15:25]}  d5 {[%clk 0:15:23]} 3. exd5 {[%clk 0:15:33]}  Nf6 {[%clk 0:15:31]} 4. Qa4+ {[%clk 0:15:11]}  Nbd7 {[%clk 0:15:11]} 5. Qb3 {[%clk 0:14:46]}  b6 {[%clk 0:13:26]} 6. Nf3 {[%clk 0:14:20]}  g6 {[%clk 0:13:16]} 7. Bb5 {[%clk 0:13:23]}  Bg7 {[%clk 0:12:32]} 8. Bc6 {[%clk 0:13:24]}  Rb8 {[%clk 0:12:36]} 9. d4 {[%clk 0:13:27]}  O-O {[%clk 0:11:04]} 10. Bf4 {[%clk 0:13:32]}  cxd4 {[%clk 0:11:12]} 11. Bxb8 {[%clk 0:13:07]}  Nc5 {[%clk 0:11:08]} 12. Qc4 {[%clk 0:11:35]}  e6 {[%clk 0:04:31]} 13. cxd4 {[%clk 0:09:14]}  Ba6 {[%clk 0:04:10]} 14. Bb5 {[%clk 0:09:22]}  exd5 {[%clk 0:03:37]} 15. Qe2 {[%clk 0:09:31]}  Qxb8 {[%clk 0:03:35]} 16. Bxa6 {[%clk 0:09:26]}  Re8 {[%clk 0:03:43]} 17. Ne5 {[%clk 0:09:34]}  Nfd7 {[%clk 0:01:50]} 18. O-O {[%clk 0:08:10]}  Bxe5 {[%clk 0:01:54]} 19. dxe5 {[%clk 0:08:11]}  Rxe5 {[%clk 0:02:02]} 20. Qb5 {[%clk 0:08:14]}  Rh5 {[%clk 0:02:11]} 21. g3 {[%clk 0:08:17]}  Ne5 {[%clk 0:02:11]} 22. Nd2 {[%clk 0:08:24]}  Ne4 {[%clk 0:02:19]} 23. f4 {[%clk 0:07:39]}  Nxd2 {[%clk 0:01:09]} 24. fxe5 {[%clk 0:07:47]}  Nxf1 {[%clk 0:01:04]} 25. Rxf1 {[%clk 0:07:54]}  Rxe5 {[%clk 0:01:12]} 26. Qc6 {[%clk 0:07:55]}  Qd8 {[%clk 0:01:13]} 27. Qc8 {[%clk 0:08:02]}  Qxc8 {[%clk 0:01:12]} 28. Bxc8 {[%clk 0:08:10]}  Kg7 {[%clk 0:01:11]} 29. Ba6 {[%clk 0:08:18]}  h5 {[%clk 0:01:08]} 30. Bb7 {[%clk 0:08:26]}  f5 {[%clk 0:01:00]} 31. Rf2 {[%clk 0:08:22]}  Kf6 {[%clk 0:01:03]} 32. Kf1 {[%clk 0:08:29]}  g5 {[%clk 0:00:23]} 33. Re2 {[%clk 0:08:35]}  a5 {[%clk 0:00:17]} 34. Rxe5 {[%clk 0:08:27]}  Kxe5 {[%clk 0:00:25]} 35. Ke2 {[%clk 0:08:28]}  Ke4 {[%clk 0:00:27]} 36. Bc6 {[%clk 0:08:16]}  h4 {[%clk 0:00:21]} 37. gxh4 {[%clk 0:08:24]}  gxh4 {[%clk 0:00:30]} 38. Kf2 {[%clk 0:08:28]}  Kd4 {[%clk 0:00:14]} 39. Kf3 {[%clk 0:08:36]}  Ke5 {[%clk 0:00:21]} 40. Bb7 {[%clk 0:08:40]}  b5 {[%clk 0:00:26]} 41. Ba8 {[%clk 0:08:33]}  b4 {[%clk 0:00:15]} 42. Bc6 {[%clk 0:08:41]}  Kd6 {[%clk 0:00:22]} 43. Bb5 {[%clk 0:08:50]}  Ke5 {[%clk 0:00:29]} 44. Bd3 {[%clk 0:08:57]}  f4 {[%clk 0:00:12]} 45. Bc2 {[%clk 0:09:02]}  d4 {[%clk 0:00:14]} 46. b3 {[%clk 0:09:01]}  d3 {[%clk 0:00:14]} 47. Bxd3 {[%clk 0:09:09]}  Kd4 {[%clk 0:00:24]} 48. Bb5 {[%clk 0:09:19]}  Kd5 {[%clk 0:00:21]} 1-0


[Site "http://www.Chess.com"]